Workbook

Sheet relatorio
C2: Simulação Ressarcimento | I2: Descrição dos equipamentos
B4: Dados do Projeto | I4: Equipamento | J4: horas/mês | K4: insumo | L4: manutenção | M4: depreciação | N4: Total
B5: Projeto: fsdff | N5: =SUM(K5:M5) -> 0
B6: Número: 01011 | N6: =SUM(K6:M6) -> 0
B7: Campus: Diadema | N7: =SUM(K7:M7) -> 0
B8: Unidade Administrativa: sfsfsf | N8: 0
N9: 0
B10: Coordenador: dadad | E10: RF: 11551 | N10: 0
B11: Vigência: 01/12/2018 à 31/12/2019 | C11: (X)Novo Projeto | E11: ( )Prorrogação de Vigência | N11: 0
N12: 0
B13: Grupo de Despesas | N13: 0
B14: 1. Apoio | C14: Unidade | D14: Vr. unitário | E14: Qtd/mês | F14: Valor | N14: 0
B15: 1.1 administrativo | C15: hora | D15: =memoria!B11 -> 16,67 | E15: 9 | F15: =D15*E15 -> 150.03 | N15: 0
B16: 1.2 TI | C16: hora | D16: =memoria!B11 -> 16,67 | E16: 0 | F16: =D16*E16 -> 0 | N16: 0
B17: 1.3 laboratorial e outros | C17: hora | D17: =memoria!B11 -> 16,67 | E17: 0 | F17: 0 | N17: 0
B18: Subtotal grupo 1 (mensal) | F18: =SUM(F15:F17) -> 150.03 | N18: 0
N19: 0
B20: 2. Espaço Físico | C20: Unidade | D20: Vr. unitário | E20: Qtd | F20: Valor | N20: 0
B21: Sala de aula, auditório e anfiteatros | C21: m² | D21: 16.46 | E21: 0 | F21: =D21*E21 -> 0 | N21: 0
B22: Laboratórios | C22: m² | D22: 16.46 | E22: 15 | F22: =D22*E22 -> 246.9 | N22: 0
B23: Subtotal grupo 2 (mensal) | F23: =F21+F22 -> 246.9 | N23: 0
N24: 0
B25: 3.Infraestrutura | C25: Unidade | D25: Vr. unitário | E25: Qtd | F25: Valor | N25: 0
B26: Custo operacional m² | C26: m² | D26: =(memoria!B28) -> 18,02 | E26: =E21+E22 -> 15 | F26: =D26*E26 -> 270.3 | N26: 0
B27: Custo de depreciação m² | C27: m² | D27: =(memoria!B36) -> 22,74 | E27: =E21+E22 -> 15 | F27: =D27*E27 -> 341.1 | N27: 0
B28: Subtotal grupo 3 (mensal) | F28: =F26+F27 -> 611.4 | N28: 0
N29: 0
B30: 4. Equipamentos | C30: Unidade | F30: Valor total | N30: 0
B31: 4.1 insumos ou matéria prima | C31: Consumo/mês | F31: =K41 -> 0 | N31: 0
B32: 4.2 manutenção operacional | C32: R$/mês | F32: =L41 -> 0 | N32: 0
B33: 4.3 depreciação | C33: R$/mês | F33: =M41 -> 0 | N33: 0
B34: Subtotal grupo 4 (mensal) | F34: =SUM(F31:F33) -> 0 | N34: 0
N35: 0
B36: Ressarcimento | N36: 0
B37: Abatimento: | F37: 0 | N37: 0
B38: Total mensal (R$/mês): | F38: =F18+F23+F28+F34 -> 1008.33 | N38: 0
B39: Total mensal com abatimento (R$/mês): | F39: =F38*(1-F37) -> 1008.33 | N39: 0
B40: Vigência (meses): | F40: 12 | N40: 0
B41: Valor Total de Ressarcimento do Projeto | F41: =F39*F40 -> 12099.96 | I41: Total | K41: =SUM(K5:K40) -> 0 | L41: =SUM(L5:L40) -> 0 | M41: 0 | N41: 0
B42: Observações:
I43: Observações: Enviar este documento por e-mail para a divisão ou diretoria responsável, você receberá retorno da proposta após análise.
D46: Diadema, 6 de março de 2018.

Sheet memoria
A1: Celebração de Convênios - apoio administrativo
A2: Setor | B2: Horas
A3: Setor Acadêmico Proponente | B3: 40
A4: Núcleo de Convênios | B4: 24
A5: Coordenadoria de Convênios | B5: 12
A6: Procuradoria | B6: 24
A7: Trimestral | B7: 100
A8: Mês (mínimo de horas necessárias) | B8: 33.33333333
A10: Vr hora servidores - TAE
A11: Salarios nível (D e E/2)/220 | B11: 16,67
A13: Espaço físico | B13: m² avaliado de cada campus- referência RU/reprografia
A14: metragem | B14: soma da metragem de todos os espaços utilizados na pesquisa
A16: Custo operacional
A17: vigilância ostensiva | B17: 11334666.57 | D17: Metragem unifesp p/campus | E17: m² | F17: R$/m2
A18: manutenção e conserv. De bens imoveis | B18: 1838894.57 | D18: Diadema | E18: 17301.57 | F18: 16,46
A19: manutenção e conserv. De maquinas e equip. | B19: 2217369.02 | D19: Guarulhos | E19: 35578.73 | F19: 11,29
A20: serviços de energia elétrica | B20: 15386820.28 | D20: Osasco | E20: 8000 | F20: 28,95
A21: serviços de agua e esgoto | B21: 6838855.7 | D21: Reitoria | E21: 9065.33 | F21: 21,91
A22: serviços de telecomunicações | B22: 1381963.65 | D22: Baixada Santista | E22: 25443.89 | F22: 24,12
A23: limpeza e conservação | B23: 8843383.06 | D23: São José dos Campos | E23: 30416.72 | F23: 18,25
A24: comunicação de dados | B24: 1724305.69 | D24: São Paulo | E24: 103359.03 | F24: 21,91
A25: Total | B25: 49566258.54 | D25: Total da metragem útil | E25: 229165.27
A26: Total de metragem unifesp | B26: 229165.27
A27: VR m² ano | B27: 216.2904464
A28: VR m² mês | B28: 18,02
A30: Custo de amortização/depreciação
A31: Edificações | B31: 1173063109
A32: Mobiliário | B32: 390368487.3
A33: Total | B33: 1173063109
A34: Metragem Unifesp | B34: 229165.27
A35: VR m² ano | B35: =B33/B34 -> 5118.852035
A36: VR m² mês | B36: 22,74
A38: Insumos | B38: valor indicado pelo coordenador
A41: Equipamentos - manutenção
A42: Exemplo: 200.000,00*0,40/(10*12*160)
A43: 200.000,00 - Vr do equipamento de aquisição
A44: 0,40 - percentual de manutenção (40%) | B44: 0.4
A45: 10 - vida útil do equipamento
A46: 12 - meses ano
A47: 160 - horas mês | B47: 160
A49: Depreciação
A50: Exemplo: 200.000,00/(10*12*160)
A51: 200.000,00 - Vr do equipamento de aquisição
A52: 10 - vida útil do equipamento
A53: 12 - meses ano
A54: 160 - horas mês
A56: ** só é cobrado o valor do m2 útil, mas o valor é calculado com base no m2 total.
A57: ***incluir taxa de juros (depreciação e manutenção)

Sheet equipamentos
A1: Campus | B1: Departamento | C1: Descrição do equipamento | D1: patrimonio | E1: data de aquisição | F1: valor de compra | G1: vida útil | H1: Manutenção | I1: Uso/depreciação
A2: Diadema | B2: 01691-Pavimento Térreo - Prédio Principal | C2: Fonte De Eletroforese Mod.40001p Serie:7j410115-1-B "Life Te | D2: 01-051891-00 | E2: 1998-01-19 | F2: 4028.17 | G2: 10 | H2: =F2*memoria!$B$44/(G2*12*memoria!$B$47) -> 0.08392020833 | I2: =F2/(G2*12*memoria!$B$47) -> 0.2098005208
A3: Diadema | B3: 01899-primeiro andar | C3: Analisador De Cintilizacao Liquida "Packard" | D3: 01-052358-00 | E3: 1998-04-22 | F3: 26820.97 | G3: 10 | H3: =F3*memoria!$B$44/(G3*12*memoria!$B$47) -> 0.5587702083 | I3: =F3/(G3*12*memoria!$B$47) -> 1.396925521
A4: Diadema | B4: 01691-Pavimento Térreo - Prédio Principal | C4: Camara De Fluxo Laminar Portatil | D4: 01-052608-00 | E4: 1998-06-23 | F4: 2881.5 | G4: 10 | H4: =F4*memoria!$B$44/(G4*12*memoria!$B$47) -> 0.06003125 | I4: =F4/(G4*12*memoria!$B$47) -> 0.150078125
A5: Diadema | B5: 01691-Pavimento Térreo - Prédio Principal | C5: Centrifugador(Sistema Universal De Speedvac Plus) "Savant" | D5: 01-053548-00 | E5: 1999-01-04 | F5: 37200.57 | G5: 10 | H5: =F5*memoria!$B$44/(G5*12*memoria!$B$47) -> 0.775011875 | I5: =F5/(G5*12*memoria!$B$47) -> 1.937529687
A6: Diadema | B6: 01691-Pavimento Térreo - Prédio Principal | C6: Placa Agitadora "Evlab", Serie:214 | D6: 01-058502-00 | E6: 2002-05-16 | F6: 280 | G6: 10 | H6: =F6*memoria!$B$44/(G6*12*memoria!$B$47) -> 0.005833333333 | I6: =F6/(G6*12*memoria!$B$47) -> 0.01458333333
A7: Diadema | B7: 01691-Pavimento Térreo - Prédio Principal | C7: Retroprojetor Portatil Com Sistema Triplo De Lentes | D7: 01-060586-00 | E7: 2003-03-27 | F7: 1460.01 | G7: 10 | H7: =F7*memoria!$B$44/(G7*12*memoria!$B$47) -> 0.030416875 | I7: =F7/(G7*12*memoria!$B$47) -> 0.0760421875
A8: Diadema | B8: 01691-Pavimento Térreo - Prédio Principal | C8: Retroprojetor Portatil Com Sistema Triplo De Lentes | D8: 01-060594-00 | E8: 2003-03-27 | F8: 1460.01 | G8: 10 | H8: =F8*memoria!$B$44/(G8*12*memoria!$B$47) -> 0.030416875 | I8: =F8/(G8*12*memoria!$B$47) -> 0.0760421875
A9: Diadema | B9: 01691-Pavimento Térreo - Prédio Principal | C9: Máquina De Fabricar Gelo | D9: 01-060777-00 | E9: 2001-10-31 | F9: 2680 | G9: 10 | H9: =F9*memoria!$B$44/(G9*12*memoria!$B$47) -> 0.05583333333 | I9: =F9/(G9*12*memoria!$B$47) -> 0.1395833333
A10: Diadema | B10: 01691-Pavimento Térreo - Prédio Principal | C10: Depositor De Gelo Em Aço Inox | D10: 01-060778-00 | E10: 2001-10-31 | F10: 828 | G10: 10 | H10: =F10*memoria!$B$44/(G10*12*memoria!$B$47) -> 0.01725 | I10: =F10/(G10*12*memoria!$B$47) -> 0.043125
A11: Diadema | B11: 01691-Pavimento Térreo - Prédio Principal | C11: Maquina De Gelo Em Escamas, De 115volts, 60hz | D11: 01-072832-00 | E11: 2007-03-22 | F11: 8420 | G11: 10 | H11: =F11*memoria!$B$44/(G11*12*memoria!$B$47) -> 0.1754166667 | I11: =F11/(G11*12*memoria!$B$47) -> 0.4385416667
A12: Diadema | B12: 01691-Pavimento Térreo - Prédio Principal | C12: Refrigerador | D12: 01-072833-00 | E12: 2007-03-28 | F12: 1200 | G12: 10 | H12: =F12*memoria!$B$44/(G12*12*memoria!$B$47) -> 0.025 | I12: =F12/(G12*12*memoria!$B$47) -> 0.0625
A13: Diadema | B13: 01691-Pavimento Térreo - Prédio Principal | C13: Freezer | D13: 01-072834-00 | E13: 2007-03-28 | F13: 1395 | G13: 10 | H13: =F13*memoria!$B$44/(G13*12*memoria!$B$47) -> 0.0290625 | I13: =F13/(G13*12*memoria!$B$47) -> 0.07265625
A14: Diadema | B14: 01691-Pavimento Térreo - Prédio Principal | C14: Mesa Agitadora, Com Timer | D14: 01-072835-00 | E14: 2007-03-21 | F14: 2416 | G14: 10 | H14: =F14*memoria!$B$44/(G14*12*memoria!$B$47) -> 0.05033333333 | I14: =F14/(G14*12*memoria!$B$47) -> 0.1258333333
A15: Diadema | B15: 01691-Pavimento Térreo - Prédio Principal | C15: Centrifuga | D15: 01-072836-00 | E15: 2007-02-28 | F15: 3299 | G15: 10 | H15: =F15*memoria!$B$44/(G15*12*memoria!$B$47) -> 0.06872916667 | I15: =F15/(G15*12*memoria!$B$47) -> 0.1718229167
A16: Diadema | B16: 01691-Pavimento Térreo - Prédio Principal | C16: Balança Analítica | D16: 01-072837-00 | E16: 2007-02-01 | F16: 2995 | G16: 10 | H16: =F16*memoria!$B$44/(G16*12*memoria!$B$47) -> 0.06239583333 | I16: =F16/(G16*12*memoria!$B$47) -> 0.1559895833
A17: Diadema | B17: 01691-Pavimento Térreo - Prédio Principal | C17: Balança Analítica | D17: 01-072838-00 | E17: 2007-02-01 | F17: 2995 | G17: 10 | H17: =F17*memoria!$B$44/(G17*12*memoria!$B$47) -> 0.06239583333 | I17: =F17/(G17*12*memoria!$B$47) -> 0.1559895833
A18: Diadema | B18: 01691-Pavimento Térreo - Prédio Principal | C18: Balança Semi-Analítica | D18: 01-072839-00 | E18: 2007-02-01 | F18: 1750 | G18: 10 | H18: =F18*memoria!$B$44/(G18*12*memoria!$B$47) -> 0.03645833333 | I18: =F18/(G18*12*memoria!$B$47) -> 0.09114583333
A19: Diadema | B19: 01691-Pavimento Térreo - Prédio Principal | C19: Balança Semi-Analítica | D19: 01-072840-00 | E19: 2007-02-01 | F19: 1750 | G19: 10 | H19: =F19*memoria!$B$44/(G19*12*memoria!$B$47) -> 0.03645833333 | I19: =F19/(G19*12*memoria!$B$47) -> 0.09114583333
A20: Diadema | B20: 01691-Pavimento Térreo - Prédio Principal | C20: Microscópio | D20: 01-072841-00 | E20: 2007-02-01 | F20: 2506.7 | G20: 10 | H20: =F20*memoria!$B$44/(G20*12*memoria!$B$47) -> 0.05222291667 | I20: =F20/(G20*12*memoria!$B$47) -> 0.1305572917
A21: Diadema | B21: 01691-Pavimento Térreo - Prédio Principal | C21: Microscópio | D21: 01-072842-00 | E21: 2007-02-01 | F21: 2506.7 | G21: 10 | H21: =F21*memoria!$B$44/(G21*12*memoria!$B$47) -> 0.05222291667 | I21: =F21/(G21*12*memoria!$B$47) -> 0.1305572917
A22: Diadema | B22: 01691-Pavimento Térreo - Prédio Principal | C22: Microscópio | D22: 01-072843-00 | E22: 2007-02-01 | F22: 2506.7 | G22: 10 | H22: =F22*memoria!$B$44/(G22*12*memoria!$B$47) -> 0.05222291667 | I22: =F22/(G22*12*memoria!$B$47) -> 0.1305572917
A23: Diadema | B23: 01691-Pavimento Térreo - Prédio Principal | C23: Microscópio | D23: 01-072844-00 | E23: 2007-02-01 | F23: 2506.7 | G23: 10 | H23: =F23*memoria!$B$44/(G23*12*memoria!$B$47) -> 0.05222291667 | I23: =F23/(G23*12*memoria!$B$47) -> 0.1305572917
A24: Diadema | B24: 01691-Pavimento Térreo - Prédio Principal | C24: Microscópio | D24: 01-072845-00 | E24: 2007-02-01 | F24: 2506.7 | G24: 10 | H24: =F24*memoria!$B$44/(G24*12*memoria!$B$47) -> 0.05222291667 | I24: =F24/(G24*12*memoria!$B$47) -> 0.1305572917
A25: Diadema | B25: 01691-Pavimento Térreo - Prédio Principal | C25: Microscópio | D25: 01-072846-00 | E25: 2007-02-01 | F25: 2506.7 | G25: 10 | H25: =F25*memoria!$B$44/(G25*12*memoria!$B$47) -> 0.05222291667 | I25: =F25/(G25*12*memoria!$B$47) -> 0.1305572917
A26: Diadema | B26: 01691-Pavimento Térreo - Prédio Principal | C26: Microscópio | D26: 01-072847-00 | E26: 2007-02-01 | F26: 2506.7 | G26: 10 | H26: =F26*memoria!$B$44/(G26*12*memoria!$B$47) -> 0.05222291667 | I26: =F26/(G26*12*memoria!$B$47) -> 0.1305572917
A27: Diadema | B27: 01691-Pavimento Térreo - Prédio Principal | C27: Microscópio | D27: 01-072848-00 | E27: 2007-02-01 | F27: 2506.7 | G27: 10 | H27: =F27*memoria!$B$44/(G27*12*memoria!$B$47) -> 0.05222291667 | I27: =F27/(G27*12*memoria!$B$47) -> 0.1305572917
A28: Diadema | B28: 01691-Pavimento Térreo - Prédio Principal | C28: Microscópio | D28: 01-072849-00 | E28: 2007-02-01 | F28: 2506.7 | G28: 10 | H28: =F28*memoria!$B$44/(G28*12*memoria!$B$47) -> 0.05222291667 | I28: =F28/(G28*12*memoria!$B$47) -> 0.1305572917
A29: Diadema | B29: 01691-Pavimento Térreo - Prédio Principal | C29: Microscópio | D29: 01-072850-00 | E29: 2007-02-01 | F29: 2506.7 | G29: 10 | H29: =F29*memoria!$B$44/(G29*12*memoria!$B$47) -> 0.05222291667 | I29: =F29/(G29*12*memoria!$B$47) -> 0.1305572917
A30: Diadema | B30: 01691-Pavimento Térreo - Prédio Principal | C30: Capela De Fluxo Laminar | D30: 01-072851-00 | E30: 2007-03-16 | F30: 12450 | G30: 10 | H30: =F30*memoria!$B$44/(G30*12*memoria!$B$47) -> 0.259375 | I30: =F30/(G30*12*memoria!$B$47) -> 0.6484375
A31: Diadema | B31: 01691-Pavimento Térreo - Prédio Principal | C31: Desumidificador | D31: 01-072852-00 | E31: 2007-03-13 | F31: 1243 | G31: 10 | H31: =F31*memoria!$B$44/(G31*12*memoria!$B$47) -> 0.02589583333 | I31: =F31/(G31*12*memoria!$B$47) -> 0.06473958333
A32: Diadema | B32: 01691-Pavimento Térreo - Prédio Principal | C32: Liquidificador | D32: 01-072853-00 | E32: 2007-03-02 | F32: 360 | G32: 10 | H32: =F32*memoria!$B$44/(G32*12*memoria!$B$47) -> 0.0075 | I32: =F32/(G32*12*memoria!$B$47) -> 0.01875
A33: Diadema | B33: 01691-Pavimento Térreo - Prédio Principal | C33: Forno Mufla, Painel De Comando Lateral 220volts. | D33: 01-072854-00 | E33: 2007-03-14 | F33: 1999.99 | G33: 10 | H33: =F33*memoria!$B$44/(G33*12*memoria!$B$47) -> 0.04166645833 | I33: =F33/(G33*12*memoria!$B$47) -> 0.1041661458
A34: Diadema | B34: 01691-Pavimento Térreo - Prédio Principal | C34: Estufa Bacteriológica | D34: 01-072855-00 | E34: 2007-03-22 | F34: 2170 | G34: 10 | H34: =F34*memoria!$B$44/(G34*12*memoria!$B$47) -> 0.04520833333 | I34: =F34/(G34*12*memoria!$B$47) -> 0.1130208333
A35: Diadema | B35: 01691-Pavimento Térreo - Prédio Principal | C35: Refrigerador Branco | D35: 01-072860-00 | E35: 2007-03-01 | F35: 560 | G35: 10 | H35: =F35*memoria!$B$44/(G35*12*memoria!$B$47) -> 0.01166666667 | I35: =F35/(G35*12*memoria!$B$47) -> 0.02916666667
A36: Diadema | B36: 01691-Pavimento Térreo - Prédio Principal | C36: Balança Tipo Analitica 110/220v | D36: 01-072861-00 | E36: 2007-03-01 | F36: 5500 | G36: 10 | H36: =F36*memoria!$B$44/(G36*12*memoria!$B$47) -> 0.1145833333 | I36: =F36/(G36*12*memoria!$B$47) -> 0.2864583333
A37: Diadema | B37: 01691-Pavimento Térreo - Prédio Principal | C37: Lavadora Ultra Sonica | D37: 01-072862-00 | E37: 2007-03-01 | F37: 3200 | G37: 10 | H37: =F37*memoria!$B$44/(G37*12*memoria!$B$47) -> 0.06666666667 | I37: =F37/(G37*12*memoria!$B$47) -> 0.1666666667
A38: Diadema | B38: 01691-Pavimento Térreo - Prédio Principal | C38: Banho Termostatizado Digital | D38: 01-072863-00 | E38: 2007-03-01 | F38: 3181 | G38: 10 | H38: =F38*memoria!$B$44/(G38*12*memoria!$B$47) -> 0.06627083333 | I38: =F38/(G38*12*memoria!$B$47) -> 0.1656770833
A39: Diadema | B39: 01691-Pavimento Térreo - Prédio Principal | C39: Banho Tipo Termostatico | D39: 01-072864-00 | E39: 2007-03-01 | F39: 6243.68 | G39: 10 | H39: =F39*memoria!$B$44/(G39*12*memoria!$B$47) -> 0.1300766667 | I39: =F39/(G39*12*memoria!$B$47) -> 0.3251916667
A40: Diadema | B40: 01691-Pavimento Térreo - Prédio Principal | C40: Agitador Tipo Magnetico 220v | D40: 01-072865-00 | E40: 2007-03-01 | F40: 525 | G40: 10 | H40: =F40*memoria!$B$44/(G40*12*memoria!$B$47) -> 0.0109375 | I40: =F40/(G40*12*memoria!$B$47) -> 0.02734375
A41: Diadema | B41: 01691-Pavimento Térreo - Prédio Principal | C41: Agitador Tipo Magnetico 220v | D41: 01-072866-00 | E41: 2007-03-01 | F41: 525 | G41: 10 | H41: =F41*memoria!$B$44/(G41*12*memoria!$B$47) -> 0.0109375 | I41: =F41/(G41*12*memoria!$B$47) -> 0.02734375
A42: Diadema | B42: 01691-Pavimento Térreo - Prédio Principal | C42: Agitador Tipo Mecanico 220v | D42: 01-072867-00 | E42: 2007-03-01 | F42: 1197 | G42: 10 | H42: =F42*memoria!$B$44/(G42*12*memoria!$B$47) -> 0.0249375 | I42: =F42/(G42*12*memoria!$B$47) -> 0.06234375
A43: Diadema | B43: 01691-Pavimento Térreo - Prédio Principal | C43: Estufa Tipo P/ Esterilização E Secagem | D43: 01-072868-00 | E43: 2007-03-01 | F43: 3566 | G43: 10 | H43: =F43*memoria!$B$44/(G43*12*memoria!$B$47) -> 0.07429166667 | I43: =F43/(G43*12*memoria!$B$47) -> 0.1857291667
A44: Diadema | B44: 01707-Pavimento Térreo - Biblioteca | C44: Manta Tipo Aquecedora Com Registro De Temperatura | D44: 01-072869-00 | E44: 2007-03-01 | F44: 280 | G44: 10 | H44: =F44*memoria!$B$44/(G44*12*memoria!$B$47) -> 0.005833333333 | I44: =F44/(G44*12*memoria!$B$47) -> 0.01458333333
A45: Diadema | B45: 01691-Pavimento Térreo - Prédio Principal | C45: Prensa Tipo Para Extração E Esmagamento. Capac. 15 Ton | D45: 01-072870-00 | E45: 2007-03-01 | F45: 9786 | G45: 10 | H45: =F45*memoria!$B$44/(G45*12*memoria!$B$47) -> 0.203875 | I45: =F45/(G45*12*memoria!$B$47) -> 0.5096875
A46: Diadema | B46: 01691-Pavimento Térreo - Prédio Principal | C46: Frigobar Branco 110v | D46: 01-073007-00 | E46: 2007-03-09 | F46: 616 | G46: 10 | H46: =F46*memoria!$B$44/(G46*12*memoria!$B$47) -> 0.01283333333 | I46: =F46/(G46*12*memoria!$B$47) -> 0.03208333333
A47: Diadema | B47: 01707-Pavimento Térreo - Biblioteca | C47: Forno Microondas Branco 110v | D47: 01-073008-00 | E47: 2007-03-09 | F47: 408 | G47: 10 | H47: =F47*memoria!$B$44/(G47*12*memoria!$B$47) -> 0.0085 | I47: =F47/(G47*12*memoria!$B$47) -> 0.02125
A48: Diadema | B48: 01707-Pavimento Térreo - Biblioteca | C48: Refrigerador Branco, 110v | D48: 01-073012-00 | E48: 2007-06-04 | F48: 819 | G48: 10 | H48: =F48*memoria!$B$44/(G48*12*memoria!$B$47) -> 0.0170625 | I48: =F48/(G48*12*memoria!$B$47) -> 0.04265625
A49: Diadema | B49: 01691-Pavimento Térreo - Prédio Principal | C49: Aparelho De Sistema De Posicionamento Global - Gps | D49: 01-073023-00 | E49: 2007-05-30 | F49: 430 | G49: 10 | H49: =F49*memoria!$B$44/(G49*12*memoria!$B$47) -> 0.008958333333 | I49: =F49/(G49*12*memoria!$B$47) -> 0.02239583333
A50: Diadema | B50: 01699-2º Pavimento - Prédio Principal | C50: Console Kvt 87 Teclas E Monitor De Video. Cor Preto | D50: 01-073036-00 | E50: 2006-11-24 | F50: 2833.43 | G50: 10 | H50: =F50*memoria!$B$44/(G50*12*memoria!$B$47) -> 0.05902979167 | I50: =F50/(G50*12*memoria!$B$47) -> 0.1475744792
A51: Diadema | B51: 01707-Pavimento Térreo - Biblioteca | C51: Mini Rack 12u X 450mm. Cor Bege | D51: 01-073039-00 | E51: 2006-12-01 | F51: 460 | G51: 10 | H51: =F51*memoria!$B$44/(G51*12*memoria!$B$47) -> 0.009583333333 | I51: =F51/(G51*12*memoria!$B$47) -> 0.02395833333
A52: Diadema | B52: 01707-Pavimento Térreo - Biblioteca | C52: Mini Rack 12u X 450mm. Cor Bege | D52: 01-073040-00 | E52: 2006-12-01 | F52: 460 | G52: 10 | H52: =F52*memoria!$B$44/(G52*12*memoria!$B$47) -> 0.009583333333 | I52: =F52/(G52*12*memoria!$B$47) -> 0.02395833333
A53: Diadema | B53: 01691-Pavimento Térreo - Prédio Principal | C53: Estufa De Esterilização E Secagem, Bege | D53: 01-073101-00 | E53: 2007-07-01 | F53: 1134.9 | G53: 10 | H53: =F53*memoria!$B$44/(G53*12*memoria!$B$47) -> 0.02364375 | I53: =F53/(G53*12*memoria!$B$47) -> 0.059109375
A54: Diadema | B54: 01691-Pavimento Térreo - Prédio Principal | C54: Estufa De Esterilização E Secagem, Cinza | D54: 01-073102-00 | E54: 2007-06-28 | F54: 4800 | G54: 10 | H54: =F54*memoria!$B$44/(G54*12*memoria!$B$47) -> 0.1 | I54: =F54/(G54*12*memoria!$B$47) -> 0.25
A55: Diadema | B55: 01691-Pavimento Térreo - Prédio Principal | C55: Estufa De Esterilização E Secagem, Cinza | D55: 01-073103-00 | E55: 2007-06-28 | F55: 1088 | G55: 10 | H55: =F55*memoria!$B$44/(G55*12*memoria!$B$47) -> 0.02266666667 | I55: =F55/(G55*12*memoria!$B$47) -> 0.05666666667
A56: Diadema | B56: 01691-Pavimento Térreo - Prédio Principal | C56: Plano Inclinado Kersting Com Meio Viscoso. Base De Ferro. Cor Bege | D56: 01-075340-00 | E56: 2007-08-15 | F56: 290 | G56: 10 | H56: =F56*memoria!$B$44/(G56*12*memoria!$B$47) -> 0.006041666667 | I56: =F56/(G56*12*memoria!$B$47) -> 0.01510416667
A57: Diadema | B57: 01691-Pavimento Térreo - Prédio Principal | C57: Conjunto Para Molas E Lei De Hooke. Base De Ferro. Cor Bege | D57: 01-075347-00 | E57: 2007-08-15 | F57: 125 | G57: 10 | H57: =F57*memoria!$B$44/(G57*12*memoria!$B$47) -> 0.002604166667 | I57: =F57/(G57*12*memoria!$B$47) -> 0.006510416667
A58: Diadema | B58: 01691-Pavimento Térreo - Prédio Principal | C58: Medidor De Ph Portatil. Cor Preto | D58: 01-075991-00 | E58: 2007-10-09 | F58: 639 | G58: 10 | H58: =F58*memoria!$B$44/(G58*12*memoria!$B$47) -> 0.0133125 | I58: =F58/(G58*12*memoria!$B$47) -> 0.03328125
A59: Diadema | B59: 01691-Pavimento Térreo - Prédio Principal | C59: Medidor De Ph Portatil. Cor Preto | D59: 01-075992-00 | E59: 2007-10-09 | F59: 639 | G59: 10 | H59: =F59*memoria!$B$44/(G59*12*memoria!$B$47) -> 0.0133125 | I59: =F59/(G59*12*memoria!$B$47) -> 0.03328125
A60: Diadema | B60: 01691-Pavimento Térreo - Prédio Principal | C60: Medidor De Ph Portatil. Cor Preto | D60: 01-075993-00 | E60: 2007-10-09 | F60: 639 | G60: 10 | H60: =F60*memoria!$B$44/(G60*12*memoria!$B$47) -> 0.0133125 | I60: =F60/(G60*12*memoria!$B$47) -> 0.03328125
A61: Diadema | B61: 01691-Pavimento Térreo - Prédio Principal | C61: Medidor De Ph Portatil. Cor Preto | D61: 01-075994-00 | E61: 2007-10-09 | F61: 639 | G61: 10 | H61: =F61*memoria!$B$44/(G61*12*memoria!$B$47) -> 0.0133125 | I61: =F61/(G61*12*memoria!$B$47) -> 0.03328125
A62: Diadema | B62: 01691-Pavimento Térreo - Prédio Principal | C62: Medidor De Ph Portatil. Cor Preto | D62: 01-075995-00 | E62: 2007-10-09 | F62: 639 | G62: 10 | H62: =F62*memoria!$B$44/(G62*12*memoria!$B$47) -> 0.0133125 | I62: =F62/(G62*12*memoria!$B$47) -> 0.03328125
A63: Diadema | B63: 01691-Pavimento Térreo - Prédio Principal | C63: Conjunto Emilia Com Manometro. Base De Ferro. Cor Bege. | D63: 01-077504-00 | E63: 2007-09-15 | F63: 385 | G63: 10 | H63: =F63*memoria!$B$44/(G63*12*memoria!$B$47) -> 0.008020833333 | I63: =F63/(G63*12*memoria!$B$47) -> 0.02005208333
A64: Diadema | B64: 01691-Pavimento Térreo - Prédio Principal | C64: Conjunto Emilia Com Manometro. Base De Ferro. Cor Bege. | D64: 01-077505-00 | E64: 2007-09-15 | F64: 385 | G64: 10 | H64: =F64*memoria!$B$44/(G64*12*memoria!$B$47) -> 0.008020833333 | I64: =F64/(G64*12*memoria!$B$47) -> 0.02005208333
A65: Diadema | B65: 01691-Pavimento Térreo - Prédio Principal | C65: Conjunto Emilia Com Manometro. Base De Ferro. Cor Bege. | D65: 01-077506-00 | E65: 2007-09-15 | F65: 385 | G65: 10 | H65: =F65*memoria!$B$44/(G65*12*memoria!$B$47) -> 0.008020833333 | I65: =F65/(G65*12*memoria!$B$47) -> 0.02005208333
A66: Diadema | B66: 01691-Pavimento Térreo - Prédio Principal | C66: Conjunto Emilia Com Manometro. Base De Ferro. Cor Bege. | D66: 01-077507-00 | E66: 2007-09-15 | F66: 385 | G66: 10 | H66: =F66*memoria!$B$44/(G66*12*memoria!$B$47) -> 0.008020833333 | I66: =F66/(G66*12*memoria!$B$47) -> 0.02005208333
A67: Diadema | B67: 01691-Pavimento Térreo - Prédio Principal | C67: Conjunto Emilia Com Manometro. Base De Ferro. Cor Bege. | D67: 01-077508-00 | E67: 2007-09-15 | F67: 385 | G67: 10 | H67: =F67*memoria!$B$44/(G67*12*memoria!$B$47) -> 0.008020833333 | I67: =F67/(G67*12*memoria!$B$47) -> 0.02005208333
A68: Diadema | B68: 01691-Pavimento Térreo - Prédio Principal | C68: Conjunto Emilia Com Manometro. Base De Ferro. Cor Bege. | D68: 01-077509-00 | E68: 2007-09-15 | F68: 385 | G68: 10 | H68: =F68*memoria!$B$44/(G68*12*memoria!$B$47) -> 0.008020833333 | I68: =F68/(G68*12*memoria!$B$47) -> 0.02005208333
A69: Diadema | B69: 01691-Pavimento Térreo - Prédio Principal | C69: Banco Optico Linear Com Luz Branca E Laser. | D69: 01-077510-00 | E69: 2007-08-15 | F69: 1566.66 | G69: 10 | H69: =F69*memoria!$B$44/(G69*12*memoria!$B$47) -> 0.03263875 | I69: =F69/(G69*12*memoria!$B$47) -> 0.081596875
A70: Diadema | B70: 01691-Pavimento Térreo - Prédio Principal | C70: Banco Optico Linear Com Luz Branca E Laser. | D70: 01-077511-00 | E70: 2007-08-15 | F70: 1566.66 | G70: 10 | H70: =F70*memoria!$B$44/(G70*12*memoria!$B$47) -> 0.03263875 | I70: =F70/(G70*12*memoria!$B$47) -> 0.081596875
A71: Diadema | B71: 01691-Pavimento Térreo - Prédio Principal | C71: Banco Optico Linear Com Luz Branca E Laser. | D71: 01-077512-00 | E71: 2007-08-15 | F71: 1566.66 | G71: 10 | H71: =F71*memoria!$B$44/(G71*12*memoria!$B$47) -> 0.03263875 | I71: =F71/(G71*12*memoria!$B$47) -> 0.081596875
A72: Diadema | B72: 01691-Pavimento Térreo - Prédio Principal | C72: Banco Optico Linear Com Luz Branca E Laser. | D72: 01-077513-00 | E72: 2007-08-15 | F72: 1566.66 | G72: 10 | H72: =F72*memoria!$B$44/(G72*12*memoria!$B$47) -> 0.03263875 | I72: =F72/(G72*12*memoria!$B$47) -> 0.081596875
A73: Diadema | B73: 01691-Pavimento Térreo - Prédio Principal | C73: Banco Optico Linear Com Luz Branca E Laser. | D73: 01-077514-00 | E73: 2007-08-15 | F73: 1566.66 | G73: 10 | H73: =F73*memoria!$B$44/(G73*12*memoria!$B$47) -> 0.03263875 | I73: =F73/(G73*12*memoria!$B$47) -> 0.081596875
A74: Diadema | B74: 01691-Pavimento Térreo - Prédio Principal | C74: Aparelho Para Dinamica Das Rotações | D74: 01-077515-00 | E74: 2007-08-15 | F74: 1190 | G74: 10 | H74: =F74*memoria!$B$44/(G74*12*memoria!$B$47) -> 0.02479166667 | I74: =F74/(G74*12*memoria!$B$47) -> 0.06197916667
A75: Diadema | B75: 01691-Pavimento Térreo - Prédio Principal | C75: Painel Dias Blanco. Painel Com Entradas Para Resistor | D75: 01-077522-00 | E75: 2007-08-15 | F75: 331.7 | G75: 10 | H75: =F75*memoria!$B$44/(G75*12*memoria!$B$47) -> 0.006910416667 | I75: =F75/(G75*12*memoria!$B$47) -> 0.01727604167
A76: Diadema | B76: 01691-Pavimento Térreo - Prédio Principal | C76: Painel Dias Blanco. Painel Com Entradas Para Resistor | D76: 01-077523-00 | E76: 2007-08-15 | F76: 331.66 | G76: 10 | H76: =F76*memoria!$B$44/(G76*12*memoria!$B$47) -> 0.006909583333 | I76: =F76/(G76*12*memoria!$B$47) -> 0.01727395833
A77: Diadema | B77: 01691-Pavimento Térreo - Prédio Principal | C77: Painel Dias Blanco. Painel Com Entradas Para Resistor | D77: 01-077524-00 | E77: 2007-08-15 | F77: 331.66 | G77: 10 | H77: =F77*memoria!$B$44/(G77*12*memoria!$B$47) -> 0.006909583333 | I77: =F77/(G77*12*memoria!$B$47) -> 0.01727395833
A78: Diadema | B78: 01691-Pavimento Térreo - Prédio Principal | C78: Painel Dias Blanco. Painel Com Entradas Para Resistor | D78: 01-077525-00 | E78: 2007-08-15 | F78: 331.66 | G78: 10 | H78: =F78*memoria!$B$44/(G78*12*memoria!$B$47) -> 0.006909583333 | I78: =F78/(G78*12*memoria!$B$47) -> 0.01727395833
A79: Diadema | B79: 01691-Pavimento Térreo - Prédio Principal | C79: Painel Dias Blanco. Painel Com Entradas Para Resistor | D79: 01-077526-00 | E79: 2007-08-15 | F79: 331.66 | G79: 10 | H79: =F79*memoria!$B$44/(G79*12*memoria!$B$47) -> 0.006909583333 | I79: =F79/(G79*12*memoria!$B$47) -> 0.01727395833
A80: Diadema | B80: 01691-Pavimento Térreo - Prédio Principal | C80: Painel Dias Blanco. Painel Com Entradas Para Resistor | D80: 01-077527-00 | E80: 2007-08-15 | F80: 331.66 | G80: 10 | H80: =F80*memoria!$B$44/(G80*12*memoria!$B$47) -> 0.006909583333 | I80: =F80/(G80*12*memoria!$B$47) -> 0.01727395833
A81: Diadema | B81: 01691-Pavimento Térreo - Prédio Principal | C81: Conjunto Para Termometria Termoeletrica. Com Suporte E Dois Frascos | D81: 01-077528-00 | E81: 2007-08-15 | F81: 360 | G81: 10 | H81: =F81*memoria!$B$44/(G81*12*memoria!$B$47) -> 0.0075 | I81: =F81/(G81*12*memoria!$B$47) -> 0.01875
A82: Diadema | B82: 01691-Pavimento Térreo - Prédio Principal | C82: Conjunto Para Termometria Termoeletrica. Com Suporte E Dois Frascos | D82: 01-077529-00 | E82: 2007-08-15 | F82: 360 | G82: 10 | H82: =F82*memoria!$B$44/(G82*12*memoria!$B$47) -> 0.0075 | I82: =F82/(G82*12*memoria!$B$47) -> 0.01875
A83: Diadema | B83: 01691-Pavimento Térreo - Prédio Principal | C83: Conjunto Para Termometria Termoeletrica. Com Suporte E Dois Frascos | D83: 01-077530-00 | E83: 2007-08-15 | F83: 360 | G83: 10 | H83: =F83*memoria!$B$44/(G83*12*memoria!$B$47) -> 0.0075 | I83: =F83/(G83*12*memoria!$B$47) -> 0.01875
A84: Diadema | B84: 01691-Pavimento Térreo - Prédio Principal | C84: Conjunto Para Termometria Termoeletrica. Com Suporte E Dois Frascos | D84: 01-077531-00 | E84: 2007-08-15 | F84: 360 | G84: 10 | H84: =F84*memoria!$B$44/(G84*12*memoria!$B$47) -> 0.0075 | I84: =F84/(G84*12*memoria!$B$47) -> 0.01875
A85: Diadema | B85: 01691-Pavimento Térreo - Prédio Principal | C85: Conjunto Para Termometria Termoeletrica. Com Suporte E Dois Frascos | D85: 01-077532-00 | E85: 2007-08-15 | F85: 360 | G85: 10 | H85: =F85*memoria!$B$44/(G85*12*memoria!$B$47) -> 0.0075 | I85: =F85/(G85*12*memoria!$B$47) -> 0.01875
A86: Diadema | B86: 01691-Pavimento Térreo - Prédio Principal | C86: Conjunto Para Termometria Termoeletrica. Com Suporte E Dois Frascos | D86: 01-077533-00 | E86: 2007-08-15 | F86: 360 | G86: 10 | H86: =F86*memoria!$B$44/(G86*12*memoria!$B$47) -> 0.0075 | I86: =F86/(G86*12*memoria!$B$47) -> 0.01875
A87: Diadema | B87: 01691-Pavimento Térreo - Prédio Principal | C87: Conjunto Para Equilibrio De Um Corpo Rigido | D87: 01-077534-00 | E87: 2007-08-15 | F87: 570 | G87: 10 | H87: =F87*memoria!$B$44/(G87*12*memoria!$B$47) -> 0.011875 | I87: =F87/(G87*12*memoria!$B$47) -> 0.0296875
A88: Diadema | B88: 01691-Pavimento Térreo - Prédio Principal | C88: Conjunto Hidrostatico Fr2 - Iii | D88: 01-077537-00 | E88: 2007-08-23 | F88: 360 | G88: 10 | H88: =F88*memoria!$B$44/(G88*12*memoria!$B$47) -> 0.0075 | I88: =F88/(G88*12*memoria!$B$47) -> 0.01875
A89: Diadema | B89: 01691-Pavimento Térreo - Prédio Principal | C89: Conjunto Hidrostatico Fr2 - Iii | D89: 01-077538-00 | E89: 2007-08-23 | F89: 360 | G89: 10 | H89: =F89*memoria!$B$44/(G89*12*memoria!$B$47) -> 0.0075 | I89: =F89/(G89*12*memoria!$B$47) -> 0.01875
A90: Diadema | B90: 01691-Pavimento Térreo - Prédio Principal | C90: Conjunto Hidrostatico Fr2 - Iii | D90: 01-077539-00 | E90: 2007-08-23 | F90: 360 | G90: 10 | H90: =F90*memoria!$B$44/(G90*12*memoria!$B$47) -> 0.0075 | I90: =F90/(G90*12*memoria!$B$47) -> 0.01875
A91: Diadema | B91: 01691-Pavimento Térreo - Prédio Principal | C91: Conjunto Hidrostatico Fr2 - Iii | D91: 01-077540-00 | E91: 2007-08-23 | F91: 360 | G91: 10 | H91: =F91*memoria!$B$44/(G91*12*memoria!$B$47) -> 0.0075 | I91: =F91/(G91*12*memoria!$B$47) -> 0.01875
A92: Diadema | B92: 01691-Pavimento Térreo - Prédio Principal | C92: Conjunto Hidrostatico Fr2 - Iii | D92: 01-077541-00 | E92: 2007-08-23 | F92: 360 | G92: 10 | H92: =F92*memoria!$B$44/(G92*12*memoria!$B$47) -> 0.0075 | I92: =F92/(G92*12*memoria!$B$47) -> 0.01875
A93: Diadema | B93: 01691-Pavimento Térreo - Prédio Principal | C93: Conjunto Hidrostatico Fr2 - Iii | D93: 01-077542-00 | E93: 2007-08-23 | F93: 360 | G93: 10 | H93: =F93*memoria!$B$44/(G93*12*memoria!$B$47) -> 0.0075 | I93: =F93/(G93*12*memoria!$B$47) -> 0.01875
A94: Diadema | B94: 01691-Pavimento Térreo - Prédio Principal | C94: Banco Optico Linear Com Luz Branca E Laser. | D94: 01-077543-00 | E94: 2007-08-23 | F94: 1566.7 | G94: 10 | H94: =F94*memoria!$B$44/(G94*12*memoria!$B$47) -> 0.03263958333 | I94: =F94/(G94*12*memoria!$B$47) -> 0.08159895833
A95: Diadema | B95: 01691-Pavimento Térreo - Prédio Principal | C95: Conjunto Basico Para Mecanica Dos Solidos | D95: 01-077550-00 | E95: 2007-08-23 | F95: 1900 | G95: 10 | H95: =F95*memoria!$B$44/(G95*12*memoria!$B$47) -> 0.03958333333 | I95: =F95/(G95*12*memoria!$B$47) -> 0.09895833333
A96: Diadema | B96: 01691-Pavimento Térreo - Prédio Principal | C96: Conjunto Basico Para Mecanica Dos Solidos | D96: 01-077551-00 | E96: 2007-08-23 | F96: 1900 | G96: 10 | H96: =F96*memoria!$B$44/(G96*12*memoria!$B$47) -> 0.03958333333 | I96: =F96/(G96*12*memoria!$B$47) -> 0.09895833333
A97: Diadema | B97: 01691-Pavimento Térreo - Prédio Principal | C97: Conjunto Basico Para Mecanica Dos Solidos | D97: 01-077552-00 | E97: 2007-08-23 | F97: 1900 | G97: 10 | H97: =F97*memoria!$B$44/(G97*12*memoria!$B$47) -> 0.03958333333 | I97: =F97/(G97*12*memoria!$B$47) -> 0.09895833333
A98: Diadema | B98: 01691-Pavimento Térreo - Prédio Principal | C98: Conjunto Basico Para Mecanica Dos Solidos | D98: 01-077553-00 | E98: 2007-08-23 | F98: 1900 | G98: 10 | H98: =F98*memoria!$B$44/(G98*12*memoria!$B$47) -> 0.03958333333 | I98: =F98/(G98*12*memoria!$B$47) -> 0.09895833333
A99: Diadema | B99: 01691-Pavimento Térreo - Prédio Principal | C99: Conjunto Basico Para Mecanica Dos Solidos | D99: 01-077554-00 | E99: 2007-08-23 | F99: 1900 | G99: 10 | H99: =F99*memoria!$B$44/(G99*12*memoria!$B$47) -> 0.03958333333 | I99: =F99/(G99*12*memoria!$B$47) -> 0.09895833333
A100: Diadema | B100: 01691-Pavimento Térreo - Prédio Principal | C100: Conjunto Basico Para Mecanica Dos Solidos | D100: 01-077555-00 | E100: 2007-08-23 | F100: 1900 | G100: 10 | H100: =F100*memoria!$B$44/(G100*12*memoria!$B$47) -> 0.03958333333 | I100: =F100/(G100*12*memoria!$B$47) -> 0.09895833333
A101: Diadema | B101: 01691-Pavimento Térreo - Prédio Principal | C101: Conjunto Para Interferometria Nunes. Base De Madeira. | D101: 01-077556-00 | E101: 2007-08-23 | F101: 13200 | G101: 10 | H101: =F101*memoria!$B$44/(G101*12*memoria!$B$47) -> 0.275 | I101: =F101/(G101*12*memoria!$B$47) -> 0.6875
A102: Diadema | B102: 01691-Pavimento Térreo - Prédio Principal | C102: Conjunto Para Interferometria Nunes. Base De Madeira. | D102: 01-077557-00 | E102: 2007-08-23 | F102: 13200 | G102: 10 | H102: =F102*memoria!$B$44/(G102*12*memoria!$B$47) -> 0.275 | I102: =F102/(G102*12*memoria!$B$47) -> 0.6875
A103: Diadema | B103: 01691-Pavimento Térreo - Prédio Principal | C103: Conjunto Para Interferometria Nunes. Base De Madeira. | D103: 01-077558-00 | E103: 2007-08-23 | F103: 13200 | G103: 10 | H103: =F103*memoria!$B$44/(G103*12*memoria!$B$47) -> 0.275 | I103: =F103/(G103*12*memoria!$B$47) -> 0.6875
A104: Diadema | B104: 01691-Pavimento Térreo - Prédio Principal | C104: Conjunto Para Interferometria Nunes. Base De Madeira. | D104: 01-077559-00 | E104: 2007-08-23 | F104: 13200 | G104: 10 | H104: =F104*memoria!$B$44/(G104*12*memoria!$B$47) -> 0.275 | I104: =F104/(G104*12*memoria!$B$47) -> 0.6875
A105: Diadema | B105: 01691-Pavimento Térreo - Prédio Principal | C105: Conjunto Para Interferometria Nunes. Base De Madeira. | D105: 01-077560-00 | E105: 2007-08-23 | F105: 13200 | G105: 10 | H105: =F105*memoria!$B$44/(G105*12*memoria!$B$47) -> 0.275 | I105: =F105/(G105*12*memoria!$B$47) -> 0.6875
A106: Diadema | B106: 01691-Pavimento Térreo - Prédio Principal | C106: Conjunto Para Interferometria Nunes. Base De Madeira. | D106: 01-077561-00 | E106: 2007-08-23 | F106: 13200 | G106: 10 | H106: =F106*memoria!$B$44/(G106*12*memoria!$B$47) -> 0.275 | I106: =F106/(G106*12*memoria!$B$47) -> 0.6875
A107: Diadema | B107: 01691-Pavimento Térreo - Prédio Principal | C107: Balança De Torção Com Laser. Cor Bege | D107: 01-077562-00 | E107: 2007-08-23 | F107: 890 | G107: 10 | H107: =F107*memoria!$B$44/(G107*12*memoria!$B$47) -> 0.01854166667 | I107: =F107/(G107*12*memoria!$B$47) -> 0.04635416667
A108: Diadema | B108: 01691-Pavimento Térreo - Prédio Principal | C108: Balança De Torção Com Laser. Cor Bege | D108: 01-077563-00 | E108: 2007-08-23 | F108: 890 | G108: 10 | H108: =F108*memoria!$B$44/(G108*12*memoria!$B$47) -> 0.01854166667 | I108: =F108/(G108*12*memoria!$B$47) -> 0.04635416667
A109: Diadema | B109: 01691-Pavimento Térreo - Prédio Principal | C109: Balança De Torção Com Laser. Cor Bege | D109: 01-077564-00 | E109: 2007-08-23 | F109: 890 | G109: 10 | H109: =F109*memoria!$B$44/(G109*12*memoria!$B$47) -> 0.01854166667 | I109: =F109/(G109*12*memoria!$B$47) -> 0.04635416667
A110: Diadema | B110: 01691-Pavimento Térreo - Prédio Principal | C110: Balança De Torção Com Laser. Cor Bege | D110: 01-077565-00 | E110: 2007-08-23 | F110: 890 | G110: 10 | H110: =F110*memoria!$B$44/(G110*12*memoria!$B$47) -> 0.01854166667 | I110: =F110/(G110*12*memoria!$B$47) -> 0.04635416667
A111: Diadema | B111: 01691-Pavimento Térreo - Prédio Principal | C111: Balança De Torção Com Laser. Cor Bege | D111: 01-077566-00 | E111: 2007-08-23 | F111: 890 | G111: 10 | H111: =F111*memoria!$B$44/(G111*12*memoria!$B$47) -> 0.01854166667 | I111: =F111/(G111*12*memoria!$B$47) -> 0.04635416667
A112: Diadema | B112: 01691-Pavimento Térreo - Prédio Principal | C112: Balança De Torção Com Laser. Cor Bege | D112: 01-077567-00 | E112: 2007-08-23 | F112: 890 | G112: 10 | H112: =F112*memoria!$B$44/(G112*12*memoria!$B$47) -> 0.01854166667 | I112: =F112/(G112*12*memoria!$B$47) -> 0.04635416667
A113: Diadema | B113: 01691-Pavimento Térreo - Prédio Principal | C113: Conjunto Para Dilatação Com Gerador Eletrico. Cor Bege | D113: 01-077568-00 | E113: 2007-08-23 | F113: 633.35 | G113: 10 | H113: =F113*memoria!$B$44/(G113*12*memoria!$B$47) -> 0.01319479167 | I113: =F113/(G113*12*memoria!$B$47) -> 0.03298697917
A114: Diadema | B114: 01691-Pavimento Térreo - Prédio Principal | C114: Conjunto Para Dilatação Com Gerador Eletrico. Cor Bege | D114: 01-077569-00 | E114: 2007-08-23 | F114: 633.33 | G114: 10 | H114: =F114*memoria!$B$44/(G114*12*memoria!$B$47) -> 0.013194375 | I114: =F114/(G114*12*memoria!$B$47) -> 0.0329859375
A115: Diadema | B115: 01691-Pavimento Térreo - Prédio Principal | C115: Conjunto Para Dilatação Com Gerador Eletrico. Cor Bege | D115: 01-077570-00 | E115: 2007-08-23 | F115: 633.33 | G115: 10 | H115: =F115*memoria!$B$44/(G115*12*memoria!$B$47) -> 0.013194375 | I115: =F115/(G115*12*memoria!$B$47) -> 0.0329859375
A116: Diadema | B116: 01691-Pavimento Térreo - Prédio Principal | C116: Conjunto Para Dilatação Com Gerador Eletrico. Cor Bege | D116: 01-077571-00 | E116: 2007-08-23 | F116: 633.33 | G116: 10 | H116: =F116*memoria!$B$44/(G116*12*memoria!$B$47) -> 0.013194375 | I116: =F116/(G116*12*memoria!$B$47) -> 0.0329859375
A117: Diadema | B117: 01691-Pavimento Térreo - Prédio Principal | C117: Conjunto Para Dilatação Com Gerador Eletrico. Cor Bege | D117: 01-077572-00 | E117: 2007-08-23 | F117: 633.33 | G117: 10 | H117: =F117*memoria!$B$44/(G117*12*memoria!$B$47) -> 0.013194375 | I117: =F117/(G117*12*memoria!$B$47) -> 0.0329859375
A118: Diadema | B118: 01691-Pavimento Térreo - Prédio Principal | C118: Conjunto Para Dilatação Com Gerador Eletrico. Cor Bege | D118: 01-077573-00 | E118: 2007-08-23 | F118: 633.33 | G118: 10 | H118: =F118*memoria!$B$44/(G118*12*memoria!$B$47) -> 0.013194375 | I118: =F118/(G118*12*memoria!$B$47) -> 0.0329859375
A119: Diadema | B119: 01691-Pavimento Térreo - Prédio Principal | C119: Conjunto Para Acustica Schuller-Mac Ii. Cor Bege | D119: 01-077574-00 | E119: 2007-08-29 | F119: 1783.35 | G119: 10 | H119: =F119*memoria!$B$44/(G119*12*memoria!$B$47) -> 0.037153125 | I119: =F119/(G119*12*memoria!$B$47) -> 0.0928828125
A120: Diadema | B120: 01691-Pavimento Térreo - Prédio Principal | C120: Conjunto Para Acustica Schuller-Mac Ii. Cor Bege | D120: 01-077575-00 | E120: 2007-08-29 | F120: 1783.33 | G120: 10 | H120: =F120*memoria!$B$44/(G120*12*memoria!$B$47) -> 0.03715270833 | I120: =F120/(G120*12*memoria!$B$47) -> 0.09288177083
A121: Diadema | B121: 01691-Pavimento Térreo - Prédio Principal | C121: Conjunto Para Acustica Schuller-Mac Ii. Cor Bege | D121: 01-077576-00 | E121: 2007-08-29 | F121: 1783.33 | G121: 10 | H121: =F121*memoria!$B$44/(G121*12*memoria!$B$47) -> 0.03715270833 | I121: =F121/(G121*12*memoria!$B$47) -> 0.09288177083
A122: Diadema | B122: 01691-Pavimento Térreo - Prédio Principal | C122: Conjunto Para Acustica Schuller-Mac Ii. Cor Bege | D122: 01-077577-00 | E122: 2007-08-29 | F122: 1783.33 | G122: 10 | H122: =F122*memoria!$B$44/(G122*12*memoria!$B$47) -> 0.03715270833 | I122: =F122/(G122*12*memoria!$B$47) -> 0.09288177083
A123: Diadema | B123: 01691-Pavimento Térreo - Prédio Principal | C123: Conjunto Para Acustica Schuller-Mac Ii. Cor Bege | D123: 01-077578-00 | E123: 2007-08-29 | F123: 1783.33 | G123: 10 | H123: =F123*memoria!$B$44/(G123*12*memoria!$B$47) -> 0.03715270833 | I123: =F123/(G123*12*memoria!$B$47) -> 0.09288177083
A124: Diadema | B124: 01691-Pavimento Térreo - Prédio Principal | C124: Conjunto Para Acustica Schuller-Mac Ii. Cor Bege | D124: 01-077579-00 | E124: 2007-08-29 | F124: 1783.33 | G124: 10 | H124: =F124*memoria!$B$44/(G124*12*memoria!$B$47) -> 0.03715270833 | I124: =F124/(G124*12*memoria!$B$47) -> 0.09288177083
A125: Diadema | B125: 01691-Pavimento Térreo - Prédio Principal | C125: Gerador Van De Graaff Iii 127 Vac. Com Duas Hastes Com 2 Esferas Cromadas | D125: 01-077580-00 | E125: 2008-08-29 | F125: 1331.7 | G125: 10 | H125: =F125*memoria!$B$44/(G125*12*memoria!$B$47) -> 0.02774375 | I125: =F125/(G125*12*memoria!$B$47) -> 0.069359375
A126: Diadema | B126: 01691-Pavimento Térreo - Prédio Principal | C126: Gerador Van De Graaff Iii 127 Vac. Com Duas Hastes Com 2 Esferas Cromadas | D126: 01-077581-00 | E126: 2008-08-29 | F126: 1331.66 | G126: 10 | H126: =F126*memoria!$B$44/(G126*12*memoria!$B$47) -> 0.02774291667 | I126: =F126/(G126*12*memoria!$B$47) -> 0.06935729167
A127: Diadema | B127: 01691-Pavimento Térreo - Prédio Principal | C127: Gerador Van De Graaff Iii 127 Vac. Com Duas Hastes Com 2 Esferas Cromadas | D127: 01-077582-00 | E127: 2008-08-29 | F127: 1331.66 | G127: 10 | H127: =F127*memoria!$B$44/(G127*12*memoria!$B$47) -> 0.02774291667 | I127: =F127/(G127*12*memoria!$B$47) -> 0.06935729167
A128: Diadema | B128: 01691-Pavimento Térreo - Prédio Principal | C128: Gerador Van De Graaff Iii 127 Vac. Com Duas Hastes Com 2 Esferas Cromadas | D128: 01-077583-00 | E128: 2008-08-29 | F128: 1331.66 | G128: 10 | H128: =F128*memoria!$B$44/(G128*12*memoria!$B$47) -> 0.02774291667 | I128: =F128/(G128*12*memoria!$B$47) -> 0.06935729167
A129: Diadema | B129: 01691-Pavimento Térreo - Prédio Principal | C129: Gerador Van De Graaff Iii 127 Vac. Com Duas Hastes Com 2 Esferas Cromadas | D129: 01-077584-00 | E129: 2008-08-29 | F129: 1331.66 | G129: 10 | H129: =F129*memoria!$B$44/(G129*12*memoria!$B$47) -> 0.02774291667 | I129: =F129/(G129*12*memoria!$B$47) -> 0.06935729167
A130: Diadema | B130: 01691-Pavimento Térreo - Prédio Principal | C130: Gerador Van De Graaff Iii 127 Vac. Com Duas Hastes Com 2 Esferas Cromadas | D130: 01-077585-00 | E130: 2008-08-29 | F130: 1331.66 | G130: 10 | H130: =F130*memoria!$B$44/(G130*12*memoria!$B$47) -> 0.02774291667 | I130: =F130/(G130*12*memoria!$B$47) -> 0.06935729167
A131: Diadema | B131: 01691-Pavimento Térreo - Prédio Principal | C131: Determinador De Ponto De Fusão. 110v. Cor Branco | D131: 01-077587-00 | E131: 2007-09-05 | F131: 1000 | G131: 10 | H131: =F131*memoria!$B$44/(G131*12*memoria!$B$47) -> 0.02083333333 | I131: =F131/(G131*12*memoria!$B$47) -> 0.05208333333
A132: Diadema | B132: 01691-Pavimento Térreo - Prédio Principal | C132: Incubadora Co2, 185 Litros. Cor Bege | D132: 01-077590-00 | E132: 2007-08-27 | F132: 24130 | G132: 10 | H132: =F132*memoria!$B$44/(G132*12*memoria!$B$47) -> 0.5027083333 | I132: =F132/(G132*12*memoria!$B$47) -> 1.256770833
A133: Diadema | B133: 01691-Pavimento Térreo - Prédio Principal | C133: Banho Incubador Seco Com Capacidade Para 100 Tubos. Cor Cinza | D133: 01-077730-00 | E133: 2007-09-20 | F133: 1513.4 | G133: 10 | H133: =F133*memoria!$B$44/(G133*12*memoria!$B$47) -> 0.03152916667 | I133: =F133/(G133*12*memoria!$B$47) -> 0.07882291667
A134: Diadema | B134: 01691-Pavimento Térreo - Prédio Principal | C134: Banho Incubador Seco Com Capacidade Para 100 Tubos. Cor Cinza | D134: 01-077731-00 | E134: 2007-09-20 | F134: 1513.4 | G134: 10 | H134: =F134*memoria!$B$44/(G134*12*memoria!$B$47) -> 0.03152916667 | I134: =F134/(G134*12*memoria!$B$47) -> 0.07882291667
A135: Diadema | B135: 01691-Pavimento Térreo - Prédio Principal | C135: Banho Incubador Seco Com Capacidade Para 100 Tubos. Cor Cinza | D135: 01-077732-00 | E135: 2007-09-20 | F135: 1513.4 | G135: 10 | H135: =F135*memoria!$B$44/(G135*12*memoria!$B$47) -> 0.03152916667 | I135: =F135/(G135*12*memoria!$B$47) -> 0.07882291667
A136: Diadema | B136: 01691-Pavimento Térreo - Prédio Principal | C136: Banho Incubador Seco Com Capacidade Para 100 Tubos. Cor Cinza | D136: 01-077733-00 | E136: 2007-09-20 | F136: 1513.4 | G136: 10 | H136: =F136*memoria!$B$44/(G136*12*memoria!$B$47) -> 0.03152916667 | I136: =F136/(G136*12*memoria!$B$47) -> 0.07882291667
A137: Diadema | B137: 01691-Pavimento Térreo - Prédio Principal | C137: Espectrofotometro. Cor Cinza | D137: 01-077738-00 | E137: 2007-09-21 | F137: 4887.5 | G137: 10 | H137: =F137*memoria!$B$44/(G137*12*memoria!$B$47) -> 0.1018229167 | I137: =F137/(G137*12*memoria!$B$47) -> 0.2545572917
A138: Diadema | B138: 01691-Pavimento Térreo - Prédio Principal | C138: Espectrofotometro. Cor Cinza | D138: 01-077739-00 | E138: 2007-09-21 | F138: 4887.5 | G138: 10 | H138: =F138*memoria!$B$44/(G138*12*memoria!$B$47) -> 0.1018229167 | I138: =F138/(G138*12*memoria!$B$47) -> 0.2545572917
A139: Diadema | B139: 01691-Pavimento Térreo - Prédio Principal | C139: Espectrofotometro. Cor Cinza | D139: 01-077740-00 | E139: 2007-09-21 | F139: 4887.5 | G139: 10 | H139: =F139*memoria!$B$44/(G139*12*memoria!$B$47) -> 0.1018229167 | I139: =F139/(G139*12*memoria!$B$47) -> 0.2545572917
A140: Diadema | B140: 01691-Pavimento Térreo - Prédio Principal | C140: Espectrofotometro. Cor Cinza | D140: 01-077741-00 | E140: 2007-09-21 | F140: 4887.5 | G140: 10 | H140: =F140*memoria!$B$44/(G140*12*memoria!$B$47) -> 0.1018229167 | I140: =F140/(G140*12*memoria!$B$47) -> 0.2545572917
A141: Diadema | B141: 01691-Pavimento Térreo - Prédio Principal | C141: Bomba De Infusão Programavel. Cor Vermelha | D141: 01-077744-00 | E141: 2007-09-26 | F141: 11750 | G141: 10 | H141: =F141*memoria!$B$44/(G141*12*memoria!$B$47) -> 0.2447916667 | I141: =F141/(G141*12*memoria!$B$47) -> 0.6119791667
A142: Diadema | B142: 01691-Pavimento Térreo - Prédio Principal | C142: Bomba De Infusão Programavel. Cor Vermelha | D142: 01-077745-00 | E142: 2007-09-26 | F142: 11750 | G142: 10 | H142: =F142*memoria!$B$44/(G142*12*memoria!$B$47) -> 0.2447916667 | I142: =F142/(G142*12*memoria!$B$47) -> 0.6119791667
A143: Diadema | B143: 01691-Pavimento Térreo - Prédio Principal | C143: Banho Maria Sorologico Digital. 220v. Cor Branco Gelo | D143: 01-077943-00 | E143: 2007-09-28 | F143: 746 | G143: 10 | H143: =F143*memoria!$B$44/(G143*12*memoria!$B$47) -> 0.01554166667 | I143: =F143/(G143*12*memoria!$B$47) -> 0.03885416667
A144: Diadema | B144: 01691-Pavimento Térreo - Prédio Principal | C144: Banho Maria Sorologico Digital. 220v. Cor Branco Gelo | D144: 01-077944-00 | E144: 2007-09-28 | F144: 746 | G144: 10 | H144: =F144*memoria!$B$44/(G144*12*memoria!$B$47) -> 0.01554166667 | I144: =F144/(G144*12*memoria!$B$47) -> 0.03885416667
A145: Diadema | B145: 01691-Pavimento Térreo - Prédio Principal | C145: Banho Maria Sorologico Digital. 220v. Cor Branco Gelo | D145: 01-077945-00 | E145: 2007-09-28 | F145: 746 | G145: 10 | H145: =F145*memoria!$B$44/(G145*12*memoria!$B$47) -> 0.01554166667 | I145: =F145/(G145*12*memoria!$B$47) -> 0.03885416667
A146: Diadema | B146: 01691-Pavimento Térreo - Prédio Principal | C146: Banho Maria Sorologico Digital. 220v. Cor Branco Gelo | D146: 01-077946-00 | E146: 2007-09-28 | F146: 746 | G146: 10 | H146: =F146*memoria!$B$44/(G146*12*memoria!$B$47) -> 0.01554166667 | I146: =F146/(G146*12*memoria!$B$47) -> 0.03885416667
A147: Diadema | B147: 01691-Pavimento Térreo - Prédio Principal | C147: Banho Maria Sorologico Digital. 220v. Cor Branco Gelo | D147: 01-077947-00 | E147: 2007-09-28 | F147: 746 | G147: 10 | H147: =F147*memoria!$B$44/(G147*12*memoria!$B$47) -> 0.01554166667 | I147: =F147/(G147*12*memoria!$B$47) -> 0.03885416667
A148: Diadema | B148: 01691-Pavimento Térreo - Prédio Principal | C148: Agitador Magnetico Com Aquecimento Plataforma. Cor Branco | D148: 01-077986-00 | E148: 2007-09-21 | F148: 595.99 | G148: 10 | H148: =F148*memoria!$B$44/(G148*12*memoria!$B$47) -> 0.01241645833 | I148: =F148/(G148*12*memoria!$B$47) -> 0.03104114583
A149: Diadema | B149: 01691-Pavimento Térreo - Prédio Principal | C149: Agitador Magnetico Com Aquecimento Plataforma. Cor Branco | D149: 01-077987-00 | E149: 2007-09-21 | F149: 595.99 | G149: 10 | H149: =F149*memoria!$B$44/(G149*12*memoria!$B$47) -> 0.01241645833 | I149: =F149/(G149*12*memoria!$B$47) -> 0.03104114583
A150: Diadema | B150: 01691-Pavimento Térreo - Prédio Principal | C150: Agitador Magnetico Com Aquecimento Plataforma. Cor Branco | D150: 01-077988-00 | E150: 2007-09-21 | F150: 595.99 | G150: 10 | H150: =F150*memoria!$B$44/(G150*12*memoria!$B$47) -> 0.01241645833 | I150: =F150/(G150*12*memoria!$B$47) -> 0.03104114583
A151: Diadema | B151: 01691-Pavimento Térreo - Prédio Principal | C151: Agitador Magnetico Com Aquecimento Plataforma. Cor Branco | D151: 01-077989-00 | E151: 2007-09-21 | F151: 595.99 | G151: 10 | H151: =F151*memoria!$B$44/(G151*12*memoria!$B$47) -> 0.01241645833 | I151: =F151/(G151*12*memoria!$B$47) -> 0.03104114583
A152: Diadema | B152: 01691-Pavimento Térreo - Prédio Principal | C152: Agitador Magnetico Com Aquecimento Plataforma. Cor Branco | D152: 01-077990-00 | E152: 2007-09-21 | F152: 595.99 | G152: 10 | H152: =F152*memoria!$B$44/(G152*12*memoria!$B$47) -> 0.01241645833 | I152: =F152/(G152*12*memoria!$B$47) -> 0.03104114583
A153: Diadema | B153: 01691-Pavimento Térreo - Prédio Principal | C153: Agitador Magnetico Com Aquecimento Plataforma. Cor Branco | D153: 01-077991-00 | E153: 2007-09-21 | F153: 595.99 | G153: 10 | H153: =F153*memoria!$B$44/(G153*12*memoria!$B$47) -> 0.01241645833 | I153: =F153/(G153*12*memoria!$B$47) -> 0.03104114583
A154: Diadema | B154: 01691-Pavimento Térreo - Prédio Principal | C154: Agitador Magnetico Com Aquecimento Plataforma. Cor Branco | D154: 01-077992-00 | E154: 2007-09-21 | F154: 595.99 | G154: 10 | H154: =F154*memoria!$B$44/(G154*12*memoria!$B$47) -> 0.01241645833 | I154: =F154/(G154*12*memoria!$B$47) -> 0.03104114583
A155: Diadema | B155: 01691-Pavimento Térreo - Prédio Principal | C155: Agitador Magnetico Com Aquecimento Plataforma. Cor Branco | D155: 01-077993-00 | E155: 2007-09-21 | F155: 595.99 | G155: 10 | H155: =F155*memoria!$B$44/(G155*12*memoria!$B$47) -> 0.01241645833 | I155: =F155/(G155*12*memoria!$B$47) -> 0.03104114583
A156: Diadema | B156: 01691-Pavimento Térreo - Prédio Principal | C156: Agitador Magnetico Com Aquecimento Plataforma. Cor Branco | D156: 01-077994-00 | E156: 2007-09-21 | F156: 595.99 | G156: 10 | H156: =F156*memoria!$B$44/(G156*12*memoria!$B$47) -> 0.01241645833 | I156: =F156/(G156*12*memoria!$B$47) -> 0.03104114583
A157: Diadema | B157: 01691-Pavimento Térreo - Prédio Principal | C157: Agitador Magnetico Com Aquecimento Plataforma. Cor Branco | D157: 01-077995-00 | E157: 2007-09-21 | F157: 595.99 | G157: 10 | H157: =F157*memoria!$B$44/(G157*12*memoria!$B$47) -> 0.01241645833 | I157: =F157/(G157*12*memoria!$B$47) -> 0.03104114583
A158: Diadema | B158: 01691-Pavimento Térreo - Prédio Principal | C158: Agitador Magnetico Com Aquecimento Plataforma. Cor Branco | D158: 01-077996-00 | E158: 2007-09-21 | F158: 595.99 | G158: 10 | H158: =F158*memoria!$B$44/(G158*12*memoria!$B$47) -> 0.01241645833 | I158: =F158/(G158*12*memoria!$B$47) -> 0.03104114583
A159: Diadema | B159: 01691-Pavimento Térreo - Prédio Principal | C159: Agitador Magnetico Com Aquecimento Plataforma. Cor Branco | D159: 01-077997-00 | E159: 2007-09-21 | F159: 595.99 | G159: 10 | H159: =F159*memoria!$B$44/(G159*12*memoria!$B$47) -> 0.01241645833 | I159: =F159/(G159*12*memoria!$B$47) -> 0.03104114583
A160: Diadema | B160: 01691-Pavimento Térreo - Prédio Principal | C160: Agitador Magnetico Com Aquecimento Plataforma. Cor Branco | D160: 01-077998-00 | E160: 2007-09-21 | F160: 595.99 | G160: 10 | H160: =F160*memoria!$B$44/(G160*12*memoria!$B$47) -> 0.01241645833 | I160: =F160/(G160*12*memoria!$B$47) -> 0.03104114583
A161: Diadema | B161: 01691-Pavimento Térreo - Prédio Principal | C161: Agitador Magnetico Com Aquecimento Plataforma. Cor Branco | D161: 01-077999-00 | E161: 2007-09-21 | F161: 595.99 | G161: 10 | H161: =F161*memoria!$B$44/(G161*12*memoria!$B$47) -> 0.01241645833 | I161: =F161/(G161*12*memoria!$B$47) -> 0.03104114583
A162: Diadema | B162: 01691-Pavimento Térreo - Prédio Principal | C162: Agitador Magnetico Com Aquecimento Plataforma. Cor Branco | D162: 01-078000-00 | E162: 2007-09-21 | F162: 595.99 | G162: 10 | H162: =F162*memoria!$B$44/(G162*12*memoria!$B$47) -> 0.01241645833 | I162: =F162/(G162*12*memoria!$B$47) -> 0.03104114583
A163: Diadema | B163: 01691-Pavimento Térreo - Prédio Principal | C163: Coletor De Fraçoes Digital, Microprocessado. Cor Argila | D163: 01-078351-00 | E163: 2007-06-22 | F163: 16340 | G163: 10 | H163: =F163*memoria!$B$44/(G163*12*memoria!$B$47) -> 0.3404166667 | I163: =F163/(G163*12*memoria!$B$47) -> 0.8510416667
A164: Diadema | B164: 01691-Pavimento Térreo - Prédio Principal | C164: Chapa Aquecedora. Cor Branca | D164: 01-078352-00 | E164: 2007-04-11 | F164: 640 | G164: 10 | H164: =F164*memoria!$B$44/(G164*12*memoria!$B$47) -> 0.01333333333 | I164: =F164/(G164*12*memoria!$B$47) -> 0.03333333333
A165: Diadema | B165: 01691-Pavimento Térreo - Prédio Principal | C165: Chapa Aquecedora. Cor Branca | D165: 01-078353-00 | E165: 2007-04-11 | F165: 640 | G165: 10 | H165: =F165*memoria!$B$44/(G165*12*memoria!$B$47) -> 0.01333333333 | I165: =F165/(G165*12*memoria!$B$47) -> 0.03333333333
A166: Diadema | B166: 01691-Pavimento Térreo - Prédio Principal | C166: Chapa Aquecedora. Cor Branca | D166: 01-078354-00 | E166: 2007-04-11 | F166: 640 | G166: 10 | H166: =F166*memoria!$B$44/(G166*12*memoria!$B$47) -> 0.01333333333 | I166: =F166/(G166*12*memoria!$B$47) -> 0.03333333333
A167: Diadema | B167: 01691-Pavimento Térreo - Prédio Principal | C167: Manta Aquecedora. Cor Branco E Azul | D167: 01-078355-00 | E167: 2007-04-11 | F167: 250 | G167: 10 | H167: =F167*memoria!$B$44/(G167*12*memoria!$B$47) -> 0.005208333333 | I167: =F167/(G167*12*memoria!$B$47) -> 0.01302083333
A168: Diadema | B168: 01691-Pavimento Térreo - Prédio Principal | C168: Manta Aquecedora. Cor Branco E Azul | D168: 01-078356-00 | E168: 2007-04-11 | F168: 250 | G168: 10 | H168: =F168*memoria!$B$44/(G168*12*memoria!$B$47) -> 0.005208333333 | I168: =F168/(G168*12*memoria!$B$47) -> 0.01302083333
A169: Diadema | B169: 01691-Pavimento Térreo - Prédio Principal | C169: Manta Aquecedora. Cor Branco E Azul | D169: 01-078357-00 | E169: 2007-04-11 | F169: 250 | G169: 10 | H169: =F169*memoria!$B$44/(G169*12*memoria!$B$47) -> 0.005208333333 | I169: =F169/(G169*12*memoria!$B$47) -> 0.01302083333
A170: Diadema | B170: 01691-Pavimento Térreo - Prédio Principal | C170: Manta Aquecedora. Cor Branco E Azul | D170: 01-078358-00 | E170: 2007-04-11 | F170: 250 | G170: 10 | H170: =F170*memoria!$B$44/(G170*12*memoria!$B$47) -> 0.005208333333 | I170: =F170/(G170*12*memoria!$B$47) -> 0.01302083333
A171: Diadema | B171: 01691-Pavimento Térreo - Prédio Principal | C171: Manta Aquecedora. Cor Branco E Azul | D171: 01-078359-00 | E171: 2007-04-11 | F171: 250 | G171: 10 | H171: =F171*memoria!$B$44/(G171*12*memoria!$B$47) -> 0.005208333333 | I171: =F171/(G171*12*memoria!$B$47) -> 0.01302083333
A172: Diadema | B172: 01691-Pavimento Térreo - Prédio Principal | C172: Manta Aquecedora. Cor Branco E Azul | D172: 01-078360-00 | E172: 2007-04-11 | F172: 250 | G172: 10 | H172: =F172*memoria!$B$44/(G172*12*memoria!$B$47) -> 0.005208333333 | I172: =F172/(G172*12*memoria!$B$47) -> 0.01302083333
A173: Diadema | B173: 01691-Pavimento Térreo - Prédio Principal | C173: Manta Aquecedora. Cor Branco E Azul | D173: 01-078361-00 | E173: 2007-04-11 | F173: 250 | G173: 10 | H173: =F173*memoria!$B$44/(G173*12*memoria!$B$47) -> 0.005208333333 | I173: =F173/(G173*12*memoria!$B$47) -> 0.01302083333
A174: Diadema | B174: 01691-Pavimento Térreo - Prédio Principal | C174: Manta Aquecedora. Cor Branco E Azul | D174: 01-078362-00 | E174: 2007-04-11 | F174: 250 | G174: 10 | H174: =F174*memoria!$B$44/(G174*12*memoria!$B$47) -> 0.005208333333 | I174: =F174/(G174*12*memoria!$B$47) -> 0.01302083333
A175: Diadema | B175: 01691-Pavimento Térreo - Prédio Principal | C175: Manta Aquecedora. Cor Branco E Azul | D175: 01-078363-00 | E175: 2007-04-11 | F175: 250 | G175: 10 | H175: =F175*memoria!$B$44/(G175*12*memoria!$B$47) -> 0.005208333333 | I175: =F175/(G175*12*memoria!$B$47) -> 0.01302083333
A176: Diadema | B176: 01691-Pavimento Térreo - Prédio Principal | C176: Manta Aquecedora. Cor Branco E Azul | D176: 01-078364-00 | E176: 2007-04-11 | F176: 250 | G176: 10 | H176: =F176*memoria!$B$44/(G176*12*memoria!$B$47) -> 0.005208333333 | I176: =F176/(G176*12*memoria!$B$47) -> 0.01302083333
A177: Diadema | B177: 01691-Pavimento Térreo - Prédio Principal | C177: Agitador Magnetico Branco. Cor Branca | D177: 01-078365-00 | E177: 2007-04-11 | F177: 399.75 | G177: 10 | H177: =F177*memoria!$B$44/(G177*12*memoria!$B$47) -> 0.008328125 | I177: =F177/(G177*12*memoria!$B$47) -> 0.0208203125
A178: Diadema | B178: 01691-Pavimento Térreo - Prédio Principal | C178: Agitador Magnetico Branco. Cor Branca | D178: 01-078366-00 | E178: 2007-04-11 | F178: 399.75 | G178: 10 | H178: =F178*memoria!$B$44/(G178*12*memoria!$B$47) -> 0.008328125 | I178: =F178/(G178*12*memoria!$B$47) -> 0.0208203125
A179: Diadema | B179: 01691-Pavimento Térreo - Prédio Principal | C179: Agitador Magnetico Branco. Cor Branca | D179: 01-078367-00 | E179: 2007-04-11 | F179: 399.75 | G179: 10 | H179: =F179*memoria!$B$44/(G179*12*memoria!$B$47) -> 0.008328125 | I179: =F179/(G179*12*memoria!$B$47) -> 0.0208203125
A180: Diadema | B180: 01691-Pavimento Térreo - Prédio Principal | C180: Agitador Magnetico Branco. Cor Branca | D180: 01-078368-00 | E180: 2007-04-11 | F180: 399.75 | G180: 10 | H180: =F180*memoria!$B$44/(G180*12*memoria!$B$47) -> 0.008328125 | I180: =F180/(G180*12*memoria!$B$47) -> 0.0208203125
A181: Diadema | B181: 01691-Pavimento Térreo - Prédio Principal | C181: Agitador Magnetico Com Placa Aquecedora. Cor Branco | D181: 01-078369-00 | E181: 2007-04-11 | F181: 584 | G181: 10 | H181: =F181*memoria!$B$44/(G181*12*memoria!$B$47) -> 0.01216666667 | I181: =F181/(G181*12*memoria!$B$47) -> 0.03041666667
A182: Diadema | B182: 01691-Pavimento Térreo - Prédio Principal | C182: Agitador Magnetico Com Placa Aquecedora. Cor Branco | D182: 01-078370-00 | E182: 2007-04-11 | F182: 584 | G182: 10 | H182: =F182*memoria!$B$44/(G182*12*memoria!$B$47) -> 0.01216666667 | I182: =F182/(G182*12*memoria!$B$47) -> 0.03041666667
A183: Diadema | B183: 01691-Pavimento Térreo - Prédio Principal | C183: Agitador Magnetico Com Placa Aquecedora. Cor Branco | D183: 01-078371-00 | E183: 2007-04-11 | F183: 584 | G183: 10 | H183: =F183*memoria!$B$44/(G183*12*memoria!$B$47) -> 0.01216666667 | I183: =F183/(G183*12*memoria!$B$47) -> 0.03041666667
A184: Diadema | B184: 01691-Pavimento Térreo - Prédio Principal | C184: Agitador Magnetico Com Placa Aquecedora. Cor Branco | D184: 01-078372-00 | E184: 2007-04-11 | F184: 584 | G184: 10 | H184: =F184*memoria!$B$44/(G184*12*memoria!$B$47) -> 0.01216666667 | I184: =F184/(G184*12*memoria!$B$47) -> 0.03041666667
A185: Diadema | B185: 01691-Pavimento Térreo - Prédio Principal | C185: Agitador De Tubos. Cor Branco | D185: 01-078373-00 | E185: 2007-04-11 | F185: 420 | G185: 10 | H185: =F185*memoria!$B$44/(G185*12*memoria!$B$47) -> 0.00875 | I185: =F185/(G185*12*memoria!$B$47) -> 0.021875
A186: Diadema | B186: 01691-Pavimento Térreo - Prédio Principal | C186: Agitador De Tubos. Cor Branco | D186: 01-078374-00 | E186: 2007-04-11 | F186: 420 | G186: 10 | H186: =F186*memoria!$B$44/(G186*12*memoria!$B$47) -> 0.00875 | I186: =F186/(G186*12*memoria!$B$47) -> 0.021875
A187: Diadema | B187: 01691-Pavimento Térreo - Prédio Principal | C187: Agitador De Tubos. Cor Branco | D187: 01-078375-00 | E187: 2007-04-11 | F187: 420 | G187: 10 | H187: =F187*memoria!$B$44/(G187*12*memoria!$B$47) -> 0.00875 | I187: =F187/(G187*12*memoria!$B$47) -> 0.021875
A188: Diadema | B188: 01691-Pavimento Térreo - Prédio Principal | C188: Agitador De Tubos. Cor Branco | D188: 01-078376-00 | E188: 2007-04-11 | F188: 420 | G188: 10 | H188: =F188*memoria!$B$44/(G188*12*memoria!$B$47) -> 0.00875 | I188: =F188/(G188*12*memoria!$B$47) -> 0.021875
A189: Diadema | B189: 01691-Pavimento Térreo - Prédio Principal | C189: Agitador De Tubos. Cor Branco | D189: 01-078377-00 | E189: 2007-04-11 | F189: 420 | G189: 10 | H189: =F189*memoria!$B$44/(G189*12*memoria!$B$47) -> 0.00875 | I189: =F189/(G189*12*memoria!$B$47) -> 0.021875
A190: Diadema | B190: 01691-Pavimento Térreo - Prédio Principal | C190: Agitador De Tubos. Cor Branco | D190: 01-078378-00 | E190: 2007-04-11 | F190: 420 | G190: 10 | H190: =F190*memoria!$B$44/(G190*12*memoria!$B$47) -> 0.00875 | I190: =F190/(G190*12*memoria!$B$47) -> 0.021875
A191: Diadema | B191: 01691-Pavimento Térreo - Prédio Principal | C191: Agitador De Tubos. Cor Branco | D191: 01-078379-00 | E191: 2007-04-11 | F191: 420 | G191: 10 | H191: =F191*memoria!$B$44/(G191*12*memoria!$B$47) -> 0.00875 | I191: =F191/(G191*12*memoria!$B$47) -> 0.021875
A192: Diadema | B192: 01691-Pavimento Térreo - Prédio Principal | C192: Agitador De Tubos. Cor Branco | D192: 01-078380-00 | E192: 2007-04-11 | F192: 420 | G192: 10 | H192: =F192*memoria!$B$44/(G192*12*memoria!$B$47) -> 0.00875 | I192: =F192/(G192*12*memoria!$B$47) -> 0.021875
A193: Diadema | B193: 01691-Pavimento Térreo - Prédio Principal | C193: Autoclave Vertical. 137 Litros. Cor Branca. Tampa Dourada | D193: 01-078384-00 | E193: 2007-05-02 | F193: 6275 | G193: 10 | H193: =F193*memoria!$B$44/(G193*12*memoria!$B$47) -> 0.1307291667 | I193: =F193/(G193*12*memoria!$B$47) -> 0.3268229167
A194: Diadema | B194: 01707-Pavimento Térreo - Biblioteca | C194: Guilhotina | D194: 01-078385-00 | E194: 2007-06-21 | F194: 97 | G194: 10 | H194: =F194*memoria!$B$44/(G194*12*memoria!$B$47) -> 0.002020833333 | I194: =F194/(G194*12*memoria!$B$47) -> 0.005052083333
A195: Diadema | B195: 01707-Pavimento Térreo - Biblioteca | C195: Plastificadora Oficio. Cor Preto E Bege Escuro | D195: 01-078420-00 | E195: 2007-04-13 | F195: 320 | G195: 10 | H195: =F195*memoria!$B$44/(G195*12*memoria!$B$47) -> 0.006666666667 | I195: =F195/(G195*12*memoria!$B$47) -> 0.01666666667
A196: Diadema | B196: 01691-Pavimento Térreo - Prédio Principal | C196: Estereomicroscopio. Cor Branco E Azul | D196: 01-078428-00 | E196: 2007-10-24 | F196: 4550 | G196: 10 | H196: =F196*memoria!$B$44/(G196*12*memoria!$B$47) -> 0.09479166667 | I196: =F196/(G196*12*memoria!$B$47) -> 0.2369791667
A197: Diadema | B197: 01691-Pavimento Térreo - Prédio Principal | C197: Estereomicroscopio. Cor Branco E Azul | D197: 01-078429-00 | E197: 2007-10-24 | F197: 4550 | G197: 10 | H197: =F197*memoria!$B$44/(G197*12*memoria!$B$47) -> 0.09479166667 | I197: =F197/(G197*12*memoria!$B$47) -> 0.2369791667
A198: Diadema | B198: 01691-Pavimento Térreo - Prédio Principal | C198: Estereomicroscopio. Cor Branco E Azul | D198: 01-078430-00 | E198: 2007-10-24 | F198: 4550 | G198: 10 | H198: =F198*memoria!$B$44/(G198*12*memoria!$B$47) -> 0.09479166667 | I198: =F198/(G198*12*memoria!$B$47) -> 0.2369791667
A199: Diadema | B199: 01691-Pavimento Térreo - Prédio Principal | C199: Estereomicroscopio. Cor Branco E Azul | D199: 01-078431-00 | E199: 2007-10-24 | F199: 4550 | G199: 10 | H199: =F199*memoria!$B$44/(G199*12*memoria!$B$47) -> 0.09479166667 | I199: =F199/(G199*12*memoria!$B$47) -> 0.2369791667
A200: Diadema | B200: 01691-Pavimento Térreo - Prédio Principal | C200: Estereomicroscopio. Cor Branco E Azul | D200: 01-078432-00 | E200: 2007-10-24 | F200: 4550 | G200: 10 | H200: =F200*memoria!$B$44/(G200*12*memoria!$B$47) -> 0.09479166667 | I200: =F200/(G200*12*memoria!$B$47) -> 0.2369791667
... 4300 more rows
